fUSD/lending_fUSD_20241223
["ID","MTS","AMOUNT","RATE_DAILY","PERIOD"]
[346402160,1734941445412,-3460.86,0.00019452,2]
[346402161,1734941445421,-8681.5,0.00019452,2]
[346402162,1734941445431,-702.9,0.00019452,2]
[346402163,1734941445441,-509.41610049,0.00019452,2]
[346402164,1734941445450,-500.0,0.00019452,2]
[346402165,1734941445459,-25285.75,0.00019452,2]
[346402166,1734941445469,-1525.48,0.00019452,2]
[346402167,1734941445478,-708.3,0.00019452,2]
[346402168,1734941445488,-1767.32,0.00019452,2]
[346402169,1734941445497,-1021.08,0.00019452,2]
[346402170,1734941445507,-500.0,0.00019452,2]
[346402171,1734941445516,-504.54,0.00019452,2]
[346402172,1734941445526,-500.0,0.00019452,2]
[346402173,1734941445535,-2855.65,0.00019452,2]
[346402174,1734941445549,-2081.17,0.00019452,2]
[346402175,1734941445564,-11354.91,0.00019452,2]
[346402176,1734941445575,-1010.96,0.00019452,2]
[346402177,1734941445584,-2208.2,0.00019452,2]
[346402178,1734941445595,-6534.51,0.00019452,2]
[346402179,1734941445604,-1218.65,0.00019452,2]
[346402180,1734941445614,-500.0,0.00019452,2]
[346402181,1734941445624,-1559.9,0.00019452,2]
[346402182,1734941445634,-981.31,0.00019452,2]
[346402183,1734941445643,-1164.31,0.00019452,2]
[346402184,1734941445652,-715.37,0.00019452,2]
[346402185,1734941445662,-672.1,0.00019452,2]
[346402186,1734941445672,-500.0,0.00019452,2]
[346402187,1734941445681,-550.19,0.00019452,2]
[346402188,1734941445691,-2226.09,0.00019452,2]
[346402189,1734941445700,-6002.25,0.00019452,2]
[346402190,1734941445709,-1427.02,0.00019452,2]
[346402191,1734941445719,-1602.29,0.00019452,2]
[346402192,1734941445728,-500.0,0.00019452,2]
[346402193,1734941445738,-500.0,0.00019452,2]
[346402194,1734941445747,-569.31,0.00019452,2]
[346402195,1734941445757,-1072.36,0.00019452,2]
[346402196,1734941445767,-500.0,0.00019452,2]
[346402197,1734941445777,-500.0,0.00019452,2]
[346402198,1734941445786,-1507.98,0.00019452,2]
[346402199,1734941445796,-500.0,0.00019452,2]
[346402200,1734941445805,-4141.75,0.00019452,2]
[346402201,1734941445814,-988.4,0.00019452,2]
[346402202,1734941445824,-1947.9,0.00019452,2]
[346402203,1734941445834,-500.0,0.00019452,2]
[346402205,1734941445847,-500.0,0.00019452,2]
[346402206,1734941445860,-2882.27,0.00019452,2]
[346402207,1734941445877,-982.76,0.00019452,2]
[346402208,1734941445888,-2945.48,0.00019452,2]
[346402209,1734941445898,-2000.0,0.00019452,15]
[346402210,1734941445908,-1561.41,0.00019452,2]
[346402211,1734941445919,-956.17,0.00019452,2]
[346402212,1734941445929,-2541.47,0.00019452,2]
[346402213,1734941445939,-1058.97,0.00019452,2]
[346402214,1734941445948,-1137.34,0.00019452,2]
[346402215,1734941445958,-1780.44,0.00019452,2]
[346402216,1734941445967,-512.64,0.00019452,2]
[346402217,1734941445977,-1189.67,0.00019452,2]
[346402218,1734941445986,-1694.66,0.00019452,2]
[346402219,1734941445995,-2661.39,0.00019452,2]
[346402220,1734941446005,-2620.38,0.00019452,2]
[346402221,1734941446014,-500.0,0.00019452,2]
[346402222,1734941446023,-926.47,0.00019452,2]
[346402223,1734941446033,-500.0,0.00019452,2]
[346402224,1734941446042,-1957.1,0.00019452,2]
[346402225,1734941446052,-500.0,0.00019452,2]
[346402226,1734941446062,-500.0,0.00019452,2]
[346402227,1734941446072,-1395.47,0.00019452,2]
[346402228,1734941446081,-15376.23,0.00019452,2]
[346402229,1734941446090,-3918.47,0.00019452,2]
[346402230,1734941446099,-2337.46,0.00019452,2]
[346402231,1734941446109,-859.52,0.00019452,2]
[346402232,1734941446118,-500.0,0.00019452,2]
[346402233,1734941446127,-547.55,0.00019452,2]
[346402234,1734941446136,-3490.27,0.00019452,2]
[346402235,1734941446145,-586.07,0.00019452,2]
[346402236,1734941446154,-1764.69,0.00019452,2]
[346402237,1734941446163,-782.78,0.00019452,2]
[346402238,1734941446172,-3834.3,0.00019452,2]
[346402239,1734941446181,-327.43217552,0.00019452,2]
[346402240,1734941446190,-500.0,0.00019452,2]
[346402241,1734941446200,-3480.14,0.00019452,2]
[346402242,1734941446209,-1487.46,0.00019452,2]
[346402243,1734941446219,-500.0,0.00019452,2]
[346402244,1734941446228,-3666.38,0.00019452,2]
[346402245,1734941446238,-950.14,0.00019452,2]
[346402246,1734941446247,-855.9,0.00019452,2]
[346402247,1734941446256,-500.0,0.00019452,2]
[346402248,1734941446266,-500.0,0.00019452,2]
[346402249,1734941446275,-500.0,0.00019452,2]
[346402250,1734941446284,-500.0,0.00019452,2]
[346402251,1734941446294,-3690.7,0.00019452,2]
[346402252,1734941446304,-1258.57,0.00019452,2]
[346402253,1734941446313,-500.0,0.00019452,2]
[346402254,1734941446326,-500.0,0.00019452,2]
[346402255,1734941446335,-897.56,0.00019452,2]
[346402256,1734941446345,-500.0,0.00019452,2]
[346402257,1734941446354,-7845.26,0.00019452,2]
[346402258,1734941446364,-687.74,0.00019452,2]
[346402259,1734941446373,-500.0,0.00019452,2]
[346402260,1734941446383,-500.0,0.00019452,2]
[346402261,1734941446394,-7597.35,0.00019452,2]
[346402262,1734941446403,-500.0,0.00019452,2]
[346402263,1734941446413,-1760.16,0.00019452,2]
[346402264,1734941446422,-919.34,0.00019452,2]
[346402265,1734941446431,-1109.62,0.00019452,2]
[346402266,1734941446441,-919.68,0.00019452,2]
[346402267,1734941446450,-1068.46,0.00019452,2]
[346402268,1734941446460,-500.0,0.00019452,2]
[346402269,1734941446470,-2720.73,0.00019452,2]
[346402270,1734941446479,-640.56,0.00019452,2]
[346402271,1734941446489,-946.5,0.00019452,2]
[346402272,1734941446498,-683.08,0.00019452,2]
[346402273,1734941446508,-500.0,0.00019452,2]
[346402274,1734941446517,-500.0,0.00019452,2]
[346402275,1734941446527,-500.0,0.00019452,2]
[346402276,1734941446536,-500.0,0.00019452,2]
[346402277,1734941446546,-1621.87,0.00019452,2]
[346402278,1734941446555,-500.0,0.00019452,2]
[346402279,1734941446614,-858.36,0.00019452,2]
[346402280,1734941446623,-1085.78,0.00019452,2]
[346402281,1734941446633,-2781.0,0.000195,2]
[346402282,1734941446643,-152.0,0.00019516,4]
[346402283,1734941446652,-2171.15458092,0.00019529,2]
[346402284,1734941446661,-1701.88344901,0.00019529,2]
[346402285,1734941446670,-154.62366545,0.00019559,2]
[346402286,1734941446680,-1009.08892252,0.000196,2]
[346402287,1734941446689,-1017.26322563,0.000196,2]
[346402288,1734941446698,-1044.16748998,0.000196,2]
[346402289,1734941446707,-2171.15458092,0.00019619,2]
[346402290,1734941446717,-1701.88344901,0.00019619,2]
[346402291,1734941446725,-168.20705072,0.00019626,2]
[346402292,1734941446735,-192.05111782,0.00019626,2]
[346402293,1734941446744,-168.20705068,0.00019695,2]
[346402294,1734941446754,-1000.0,0.000197,2]
[346402295,1734941446763,-2171.15458092,0.00019709,2]
[346402296,1734941446773,-1701.88344901,0.00019709,2]
[346402297,1734941446782,-150.0,0.00019717,2]
[346402298,1734941446791,-150.0,0.00019723,2]
[346402299,1734941446801,-153.0,0.00019724,2]
[346402300,1734941446811,-153.0,0.00019724,2]
[346402301,1734941446820,-153.0,0.00019724,2]
[346402302,1734941446829,-150.122316,0.00019724,2]
[346402303,1734941446842,-150.122316,0.00019724,2]
[346402304,1734941446852,-153.0,0.00019724,2]
[346402305,1734941446861,-153.0,0.00019724,2]
[346402306,1734941446870,-153.0,0.00019724,2]
[346402307,1734941446880,-153.0,0.00019724,2]
[346402308,1734941446891,-153.0,0.00019725,2]
[346402309,1734941446900,-153.0,0.00019725,2]
[346402310,1734941446910,-153.0,0.00019725,2]
[346402311,1734941446920,-1359.24,0.00019725,2]
[346402312,1734941446930,-1359.24,0.00019725,2]
[346402313,1734941446939,-3203.85,0.00019725,2]
[346402314,1734941446948,-153.0,0.00019725,2]
[346402315,1734941446958,-153.0,0.00019725,2]
[346402316,1734941446967,-153.0,0.00019725,2]
[346402317,1734941446976,-153.0,0.00019725,2]
[346402318,1734941446986,-1639.0,0.00019726,2]
[346402319,1734941446995,-500.0,0.00019726,2]
[346402320,1734941447006,-509.12568703,0.00019726,2]
[346402321,1734941447015,-500.0,0.00019726,2]
[346402322,1734941447024,-500.0,0.00019726,2]
[346402323,1734941447033,-500.0,0.00019726,2]
[346402324,1734941447042,-500.0,0.00019726,2]
[346402325,1734941447051,-500.0,0.00019726,2]
[346402326,1734941447060,-500.0,0.00019726,2]
[346402327,1734941447070,-287.03657831,0.00019726,2]
[346402328,1734941447080,-500.0,0.00019726,2]
[346402329,1734941447089,-500.0,0.00019726,2]
[346402330,1734941447099,-500.0,0.00019726,2]
[346402331,1734941447108,-500.0,0.00019726,2]
[346402332,1734941447117,-500.0,0.00019726,2]
[346402333,1734941447127,-739.32,0.00019726,2]
[346402334,1734941447136,-500.0,0.00019726,2]
[346402335,1734941447146,-500.0,0.00019726,2]
[346402336,1734941447155,-338.32182774,0.00019726,2]
[346402337,1734941447164,-700.99,0.00019726,2]
[346402338,1734941447173,-500.0,0.00019726,2]
[346402339,1734941447182,-500.0,0.00019726,2]
[346402340,1734941447192,-500.0,0.00019726,2]
[346402341,1734941447201,-500.0,0.00019726,2]
[346402342,1734941447212,-500.0,0.00019726,2]
[346402343,1734941447221,-500.0,0.00019726,2]
[346402344,1734941447231,-500.0,0.00019726,2]
[346402345,1734941447240,-500.0,0.00019726,2]
[346402346,1734941447249,-543.27,0.00019726,2]
[346402347,1734941447258,-500.0,0.00019726,2]
[346402348,1734941447268,-500.0,0.00019726,2]
[346402349,1734941447278,-500.0,0.00019726,2]
[346402350,1734941447287,-500.0,0.00019726,2]
[346402351,1734941447296,-500.0,0.00019726,2]
[346402352,1734941447305,-500.0,0.00019726,2]
[346402353,1734941447314,-817.63,0.00019726,2]
[346402354,1734941447324,-500.0,0.00019726,2]
[346402355,1734941447333,-500.0,0.00019726,2]
[346402356,1734941447342,-500.0,0.00019726,2]
[346402357,1734941447351,-500.0,0.00019726,2]
[346402358,1734941447359,-500.0,0.00019726,2]
[346402359,1734941447369,-500.0,0.00019726,2]
[346402360,1734941447378,-500.0,0.00019726,2]
[346402361,1734941447388,-500.0,0.00019726,2]
[346402362,1734941447397,-500.0,0.00019726,2]
[346402363,1734941447406,-500.0,0.00019726,2]
[346402364,1734941447415,-500.0,0.00019726,2]
[346402365,1734941447424,-500.0,0.00019726,2]
[346402366,1734941447433,-660.32,0.00019726,2]
[346402367,1734941447442,-576.55,0.00019726,2]
[346402368,1734941447451,-500.0,0.00019726,2]
[346402369,1734941447460,-500.0,0.00019726,2]
[346402370,1734941447469,-500.0,0.00019726,2]
[346402371,1734941447478,-532.41628375,0.00019726,2]
[346402372,1734941447488,-500.0,0.00019726,2]
[346402373,1734941447507,-500.0,0.00019726,2]
[346402374,1734941447519,-500.0,0.00019726,2]
[346402375,1734941447528,-500.0,0.00019726,2]
[346402376,1734941447537,-293.36363818,0.00019726,2]
[346402377,1734941447546,-500.0,0.00019726,2]
[346402378,1734941447555,-630.61439267,0.00019726,2]
[346402379,1734941447564,-500.0,0.00019726,2]
[346402380,1734941447575,-500.0,0.00019726,2]
[346402381,1734941447584,-721.54,0.00019726,2]
[346402382,1734941447594,-718.59,0.00019726,2]
[346402383,1734941447603,-500.0,0.00019726,2]
[346402384,1734941447612,-500.0,0.00019726,2]
[346402385,1734941447622,-590.58372442,0.00019726,2]
[346402386,1734941447631,-500.0,0.00019726,2]
[346402387,1734941447640,-500.0,0.00019726,2]
[346402388,1734941447649,-500.0,0.00019726,2]
[346402389,1734941447658,-500.0,0.00019726,2]
[346402390,1734941447668,-500.0,0.00019726,2]
[346402391,1734941447678,-569.25629171,0.00019726,2]
[346402392,1734941447687,-500.0,0.00019726,2]
[346402393,1734941447696,-500.0,0.00019726,2]
[346402394,1734941447705,-500.0,0.00019726,2]
[346402395,1734941447714,-830.25,0.00019726,2]
[346402396,1734941447723,-500.0,0.00019726,2]
[346402397,1734941447732,-500.0,0.00019726,2]
[346402398,1734941447741,-500.0,0.00019726,2]
[346402399,1734941447750,-699.69,0.00019726,2]
[346402400,1734941447759,-500.0,0.00019726,2]
[346402401,1734941447768,-500.0,0.00019726,2]
[346402402,1734941447777,-500.0,0.00019726,2]
[346402403,1734941447786,-602.67554877,0.00019726,2]
[346402404,1734941447795,-612.13,0.00019726,2]
[346402405,1734941447804,-500.0,0.00019726,2]
[346402406,1734941447813,-500.0,0.00019726,2]
[346402407,1734941447823,-500.0,0.00019726,2]
[346402408,1734941447833,-500.0,0.00019726,2]
[346402409,1734941447844,-500.0,0.00019726,2]
[346402410,1734941447853,-500.0,0.00019726,2]
[346402411,1734941447862,-500.0,0.00019726,2]
[346402412,1734941447871,-500.0,0.00019726,2]
[346402413,1734941447880,-500.0,0.00019726,2]
[346402414,1734941447889,-500.0,0.00019726,2]
[346402415,1734941447899,-363.5232675,0.00019726,2]
[346402416,1734941447907,-500.0,0.00019726,2]
[346402417,1734941447917,-500.0,0.00019726,2]
[346402418,1734941447927,-500.0,0.00019726,2]
[346402419,1734941447936,-500.0,0.00019726,2]
[346402420,1734941447945,-500.0,0.00019726,2]
[346402421,1734941447955,-500.0,0.00019726,2]
[346402422,1734941447965,-500.0,0.00019726,2]
[346402423,1734941447974,-500.0,0.00019726,2]
[346402424,1734941447983,-500.0,0.00019726,2]
[346402425,1734941447993,-633.94,0.00019726,2]
[346402426,1734941448002,-613.04,0.00019726,2]
[346402427,1734941448011,-303.04645523,0.00019726,2]
[346402428,1734941448021,-500.0,0.00019726,2]
[346402429,1734941448031,-500.0,0.00019726,2]
[346402430,1734941448040,-500.0,0.00019726,2]
[346402431,1734941448050,-500.0,0.00019726,2]
[346402432,1734941448059,-500.0,0.00019726,2]
[346402433,1734941448070,-500.0,0.00019726,2]
[346402434,1734941448080,-500.0,0.00019726,2]
[346402435,1734941448090,-1305.667692,0.00019726,2]
[346402436,1734941448099,-500.0,0.00019726,2]
[346402437,1734941448109,-500.0,0.00019726,2]
[346402438,1734941448118,-500.0,0.00019726,2]
[346402439,1734941448128,-649.87,0.00019726,2]
[346402440,1734941448137,-500.0,0.00019726,2]
[346402441,1734941448147,-1056.511104,0.00019726,2]
[346402442,1734941448156,-500.0,0.00019726,2]
[346402443,1734941448166,-877.95,0.00019726,2]
[346402444,1734941448176,-906.98,0.00019726,2]
[346402445,1734941448186,-278.1958646,0.00019726,2]
[346402446,1734941448196,-247.84330408,0.00019726,2]
[346402447,1734941448207,-500.0,0.00019726,2]
[346402448,1734941448219,-500.0,0.00019726,2]
[346402449,1734941448229,-595.14,0.00019726,2]
[346402450,1734941448238,-1086.11,0.00019726,2]
[346402451,1734941448248,-500.0,0.00019726,2]
[346402452,1734941448258,-513.63444858,0.00019726,2]
[346402453,1734941448267,-500.0,0.00019726,2]
[346402454,1734941448277,-500.0,0.00019726,2]
[346402455,1734941448287,-804.32,0.00019726,2]
[346402456,1734941448296,-863.3,0.00019726,2]
[346402457,1734941448306,-500.0,0.00019726,2]
[346402458,1734941448316,-500.0,0.00019726,2]
[346402459,1734941448330,-500.0,0.00019726,2]
[346402460,1734941448340,-524.03,0.00019726,2]
[346402461,1734941448350,-500.0,0.00019726,2]
[346402462,1734941448359,-500.0,0.00019726,2]
[346402463,1734941448369,-500.0,0.00019726,2]
[346402464,1734941448379,-513.79753504,0.00019726,2]
[346402465,1734941448389,-636.9,0.00019726,2]
[346402466,1734941448400,-500.0,0.00019726,2]
[346402467,1734941448410,-500.0,0.00019726,2]
[346402468,1734941448420,-299.62797059,0.00019726,2]
[346402469,1734941448430,-500.0,0.00019726,2]
[346402470,1734941448440,-911.26,0.00019726,2]
[346402471,1734941448450,-500.0,0.00019726,2]
[346402472,1734941448460,-970.06,0.00019726,2]
[346402473,1734941448470,-500.0,0.00019726,2]
[346402474,1734941448480,-500.0,0.00019726,2]
[346402475,1734941448489,-500.0,0.00019726,2]
[346402476,1734941448500,-500.0,0.00019726,2]
[346402477,1734941448510,-687.87,0.00019726,2]
[346402478,1734941448519,-500.0,0.00019726,2]
[346402479,1734941448529,-261.53320929,0.00019726,2]
[346402480,1734941448539,-966.44,0.00019726,2]
[346402481,1734941448548,-788.0,0.00019726,2]
[346402482,1734941448558,-849.02,0.00019726,2]
[346402483,1734941448567,-644.77,0.00019726,2]
[346402484,1734941448579,-500.0,0.00019726,2]
[346402485,1734941448589,-500.0,0.00019726,2]
[346402486,1734941448599,-500.0,0.00019726,2]
[346402487,1734941448608,-827.44,0.00019726,2]
[346402488,1734941448619,-500.0,0.00019726,2]
[346402489,1734941448628,-500.0,0.00019726,2]
[346402490,1734941448637,-466.68,0.00019726,2]
[346402491,1734941448647,-500.0,0.00019726,2]
[346402492,1734941448656,-500.0,0.00019726,2]
[346402493,1734941448666,-1399.26,0.00019726,2]
[346402494,1734941448675,-743.38,0.00019726,2]
[346402495,1734941448685,-500.0,0.00019726,2]
[346402496,1734941448695,-500.0,0.00019726,2]
[346402497,1734941448704,-500.0,0.00019726,2]
[346402498,1734941448714,-500.0,0.00019726,2]
[346402499,1734941448723,-696.86,0.00019726,2]
[346402500,1734941448733,-1137.67,0.00019726,2]
[346402501,1734941448742,-500.0,0.00019726,2]
[346402502,1734941448752,-500.0,0.00019726,2]
[346402503,1734941448762,-942.55,0.00019726,2]
[346402504,1734941448772,-1180.62,0.00019726,2]
[346402505,1734941448782,-867.89,0.00019726,2]
[346402506,1734941448793,-636.99,0.00019726,2]
[346402507,1734941448803,-500.0,0.00019726,2]
[346402508,1734941448813,-500.0,0.00019726,2]
[346402509,1734941448824,-500.0,0.00019726,2]
[346402510,1734941448834,-500.0,0.00019726,2]
[346402511,1734941448848,-560.76,0.00019726,2]
[346402512,1734941448858,-500.0,0.00019726,2]
[346402513,1734941448867,-1145.95,0.00019726,2]
[346402514,1734941448878,-8196.6,0.00019726,2]
[346402515,1734941448888,-1188.33,0.00019726,2]
[346402516,1734941448898,-1247.88,0.00019726,2]
[346402517,1734941448909,-1592.82,0.00019726,2]
[346402518,1734941448920,-500.0,0.00019726,2]
[346402519,1734941448930,-1781.71,0.00019726,2]
[346402520,1734941448940,-500.0,0.00019726,2]
[346402521,1734941448950,-786.02,0.00019726,2]
[346402522,1734941448960,-560.60739944,0.00019726,2]
[346402523,1734941448969,-1048.44,0.00019726,2]
[346402524,1734941448979,-500.0,0.00019726,2]
[346402525,1734941448988,-871.32,0.00019726,2]
[346402526,1734941448998,-1134.65,0.00019726,2]
[346402527,1734941449007,-797.28,0.00019726,2]
[346402528,1734941449017,-1382.88,0.00019726,2]
[346402529,1734941449026,-968.31,0.00019726,2]
[346402530,1734941449036,-897.39,0.00019726,2]
[346402531,1734941449045,-649.81,0.00019726,2]
[346402532,1734941449056,-200.75144042,0.00019726,2]
[346402533,1734941449065,-500.0,0.00019726,2]
[346402534,1734941449076,-1967.2,0.00019726,2]
[346402535,1734941449086,-870.59,0.00019726,2]
[346402536,1734941449096,-500.0,0.00019726,2]
[346402537,1734941449106,-754.37,0.00019726,2]
[346402538,1734941449116,-1274.96,0.00019726,2]
[346402539,1734941449126,-3071.8,0.00019726,2]
[346402540,1734941449136,-500.0,0.00019726,2]
[346402541,1734941449146,-500.0,0.00019726,2]
[346402542,1734941449156,-1457.59,0.00019726,2]
[346402543,1734941449166,-500.0,0.00019726,2]
[346402544,1734941449175,-500.0,0.00019726,2]
[346402545,1734941449185,-1710.91,0.00019726,2]
[346402546,1734941449195,-736.98,0.00019726,2]
[346402547,1734941449205,-705.49,0.00019726,2]
[346402548,1734941449216,-1420.87,0.00019726,2]
[346402549,1734941449226,-1387.94,0.00019726,2]
[346402550,1734941449236,-1795.47,0.00019726,2]
[346402551,1734941449246,-1611.06,0.00019726,2]
[346402552,1734941449256,-2018.15,0.00019726,2]
[346402553,1734941449266,-500.0,0.00019726,2]
[346402554,1734941449275,-735.15,0.00019726,2]
[346402555,1734941449285,-500.0,0.00019726,2]
[346402556,1734941449296,-2412.67,0.00019726,2]
[346402557,1734941449306,-582.99,0.00019726,2]
[346402558,1734941449315,-2523.55,0.00019726,2]
[346402559,1734941449328,-2454.69,0.00019726,2]
[346402560,1734941449338,-3460.86,0.00019726,2]
[346402561,1734941449348,-8681.5,0.00019726,2]
[346402562,1734941449358,-702.9,0.00019726,2]
[346402563,1734941449368,-500.0,0.00019726,2]
[346402564,1734941449378,-25285.75,0.00019726,2]
[346402565,1734941449389,-1525.48,0.00019726,2]
[346402566,1734941449399,-708.3,0.00019726,2]
[346402567,1734941449409,-1767.32,0.00019726,2]
[346402568,1734941449420,-1021.08,0.00019726,2]
[346402569,1734941449430,-500.0,0.00019726,2]
[346402570,1734941449440,-504.54,0.00019726,2]
[346402571,1734941449449,-500.0,0.00019726,2]
[346402572,1734941449459,-2855.65,0.00019726,2]
[346402573,1734941449469,-2081.17,0.00019726,2]
[346402574,1734941449479,-11354.91,0.00019726,2]
[346402575,1734941449489,-1010.96,0.00019726,2]
[346402576,1734941449499,-2208.2,0.00019726,2]
[346402577,1734941449509,-6534.51,0.00019726,2]
[346402578,1734941449519,-1218.65,0.00019726,2]
[346402579,1734941449529,-500.0,0.00019726,2]
[346402580,1734941449539,-1559.9,0.00019726,2]
[346402581,1734941449550,-981.31,0.00019726,2]
[346402582,1734941449559,-1164.31,0.00019726,2]
[346402583,1734941449569,-715.37,0.00019726,2]
[346402584,1734941449579,-672.1,0.00019726,2]
[346402585,1734941449590,-500.0,0.00019726,2]
[346402586,1734941449600,-550.19,0.00019726,2]
[346402587,1734941449609,-2226.09,0.00019726,2]
[346402588,1734941449619,-6002.25,0.00019726,2]
[346402589,1734941449629,-1427.02,0.00019726,2]
[346402590,1734941449639,-1602.29,0.00019726,2]
[346402591,1734941449648,-500.0,0.00019726,2]
[346402592,1734941449659,-569.31,0.00019726,2]
[346402593,1734941449668,-1072.36,0.00019726,2]
[346402594,1734941449678,-500.0,0.00019726,2]
[346402595,1734941449688,-1507.98,0.00019726,2]
[346402596,1734941449699,-500.0,0.00019726,2]
[346402597,1734941449708,-988.4,0.00019726,2]
[346402598,1734941449718,-4141.75,0.00019726,2]
[346402599,1734941449728,-1947.9,0.00019726,2]
[346402600,1734941449737,-500.0,0.00019726,2]
[346402601,1734941449747,-500.0,0.00019726,2]
[346402602,1734941449757,-2882.27,0.00019726,2]
[346402603,1734941449767,-982.76,0.00019726,2]
[346402604,1734941449776,-2945.48,0.00019726,2]
[346402605,1734941449787,-2000.0,0.00019726,15]
[346402606,1734941449796,-1561.41,0.00019726,2]
[346402607,1734941449806,-956.17,0.00019726,2]
[346402608,1734941449816,-2541.47,0.00019726,2]
[346402609,1734941449827,-1058.97,0.00019726,2]
[346402610,1734941449837,-1137.34,0.00019726,2]
[346402611,1734941449849,-1780.44,0.00019726,2]
[346402612,1734941449859,-512.64,0.00019726,2]
[346402613,1734941449869,-1189.67,0.00019726,2]
[346402614,1734941449879,-1694.66,0.00019726,2]
[346402615,1734941449889,-2661.39,0.00019726,2]
[346402616,1734941449900,-2620.38,0.00019726,2]
[346402617,1734941449910,-500.0,0.00019726,2]
[346402618,1734941449920,-926.47,0.00019726,2]
[346402619,1734941449929,-500.0,0.00019726,2]
[346402620,1734941449938,-1957.1,0.00019726,2]
[346402621,1734941449948,-500.0,0.00019726,2]
[346402622,1734941449957,-500.0,0.00019726,2]
[346402623,1734941449967,-1395.47,0.00019726,2]
[346402624,1734941449977,-15376.23,0.00019726,2]
[346402625,1734941449987,-3918.47,0.00019726,2]
[346402626,1734941449996,-2337.46,0.00019726,2]
[346402627,1734941450006,-859.52,0.00019726,2]
[346402628,1734941450016,-500.0,0.00019726,2]
[346402629,1734941450025,-547.55,0.00019726,2]
[346402630,1734941450035,-3490.27,0.00019726,2]
[346402631,1734941450044,-586.07,0.00019726,2]
[346402632,1734941450054,-1764.69,0.00019726,2]
[346402633,1734941450064,-782.78,0.00019726,2]
[346402634,1734941450074,-3834.3,0.00019726,2]
[346402635,1734941450083,-500.0,0.00019726,2]
[346402636,1734941450094,-3480.14,0.00019726,2]
[346402637,1734941450104,-1487.46,0.00019726,2]
[346402638,1734941450113,-500.0,0.00019726,2]
[346402639,1734941450122,-3666.38,0.00019726,2]
[346402640,1734941450132,-950.14,0.00019726,2]
[346402641,1734941450142,-855.9,0.00019726,2]
[346402642,1734941450152,-500.0,0.00019726,2]
[346402643,1734941450319,-500.0,0.00019726,2]
[346402644,1734941450329,-500.0,0.00019726,2]
[346402645,1734941450338,-500.0,0.00019726,2]
[346402646,1734941450347,-3690.7,0.00019726,2]
[346402647,1734941450356,-1258.57,0.00019726,2]
[346402648,1734941450366,-500.0,0.00019726,2]
[346402649,1734941450375,-500.0,0.00019726,2]
[346402650,1734941450384,-897.56,0.00019726,2]
[346402651,1734941450394,-500.0,0.00019726,2]
[346402652,1734941450403,-7845.26,0.00019726,2]
[346402653,1734941450412,-687.74,0.00019726,2]
[346402654,1734941450421,-500.0,0.00019726,2]
[346402655,1734941450430,-500.0,0.00019726,2]
[346402656,1734941450439,-7597.35,0.00019726,2]
[346402657,1734941450448,-500.0,0.00019726,2]
[346402658,1734941450457,-1760.16,0.00019726,2]
[346402659,1734941450466,-919.34,0.00019726,2]
[346402660,1734941450475,-1109.62,0.00019726,2]